bitfinex-derivatives/quotes_BTCF0:USTF0_20250827
["timestamp","ask_amount","ask_price","bid_price","bid_amount"]
[1756326086859,0.4503489,111650.0,111640.0,0.05989]
[1756326087156,0.38068527,111660.0,111640.0,0.25]
[1756326087358,0.38068527,111660.0,111650.0,0.056]
[1756326087359,0.01988527,111660.0,111650.0,0.056]
[1756326087553,0.01988527,111660.0,111650.0,1.79]
[1756326087754,0.0199936,111660.0,111650.0,1.8174]
[1756326087954,0.01987496,111670.0,111660.0,0.0834]
[1756326088154,0.10940766,111670.0,111660.0,0.6942]
[1756326088363,0.01987496,111670.0,111660.0,0.4442]
[1756326088570,0.3608,111690.0,111670.0,0.06062]
[1756326088865,0.04273698,111710.0,111700.0,0.08381]
[1756326088866,0.46991758,111710.0,111700.0,0.08381]
[1756326089070,0.46991758,111710.0,111680.0,0.38926]
[1756326089071,0.0895166,111690.0,111680.0,0.38926]
[1756326089371,0.0895407,111660.0,111650.0,0.38926]
[1756326089567,0.1741987,111650.0,111640.0,7.401e-05]
[1756326089770,0.0895728,111620.0,111610.0,3.60094]
[1756326089962,0.5115128,111620.0,111610.0,1.70132]
[1756326090267,0.0895889,111600.0,111590.0,1.54102]
[1756326090463,0.1222089,111600.0,111590.0,1.90518]
[1756326090660,0.4503821,111610.0,111590.0,0.06062]
[1756326090867,0.089574,111620.0,111610.0,0.08381]
[1756326091167,0.0895575,111640.0,111630.0,0.02846]
[1756326091354,0.39342,111650.0,111630.0,0.03216]
[1756326091355,0.0895494,111650.0,111630.0,0.03216]
[1756326091561,0.4503494,111650.0,111640.0,0.06062]
[1756326091777,0.0895494,111650.0,111640.0,0.08381]
[1756326092065,0.02016015,111660.0,111650.0,0.08381]
[1756326092263,0.02016015,111660.0,111650.0,0.44461]
[1756326092457,0.10967352,111690.0,111650.0,0.63399]
[1756326092666,0.10967352,111690.0,111640.0,0.3608]
[1756326092667,0.0895489,111650.0,111640.0,0.41245]
[1756326092961,0.0895729,111620.0,111610.0,1.96678]
[1756326093175,0.1742229,111620.0,111610.0,1.90616]
[1756326093361,0.0895729,111620.0,111610.0,1.57382]
[1756326093660,0.12227181,111620.0,111610.0,1.57382]
[1756326093862,0.0895729,111620.0,111610.0,1.57382]
[1756326094062,0.0895729,111620.0,111610.0,0.08381]
[1756326094266,0.0895729,111620.0,111610.0,0.02846]
[1756326094564,0.0895588,111640.0,111620.0,0.02319]
[1756326094768,0.1251697,111650.0,111630.0,0.02846]
[1756326094964,0.1221771,111640.0,111630.0,0.02846]
[1756326095169,0.003,111650.0,111640.0,0.02846]
[1756326095170,0.0925511,111650.0,111640.0,0.02846]
[1756326095367,0.1221851,111630.0,111620.0,0.02846]
[1756326095668,0.1416352,111580.0,111570.0,0.3609]
[1756326095972,0.02852,111560.0,111540.0,1.93152]
[1756326096164,0.08973251,111550.0,111540.0,1.95998]
[1756326096363,0.08973251,111550.0,111470.0,0.09129554]
[1756326096364,0.5378927,111530.0,111490.0,1.93418]
[1756326096567,0.5378927,111530.0,111470.0,0.00160324]
[1756326096568,0.75012,111500.0,111470.0,0.00160324]
[1756326096867,0.0896855,111480.0,111470.0,0.05695324]
[1756326097282,0.3609,111490.0,111480.0,0.03216]
[1756326097485,0.3609,111490.0,111480.0,0.05535]
[1756326097486,0.00018925,111490.0,111480.0,0.05535]
[1756326097765,0.3608,111540.0,111480.0,1.15571599]
[1756326097962,0.3608,111540.0,111530.0,0.07921956]
[1756326097963,0.4791382,111540.0,111530.0,0.07921956]
[1756326098164,0.38067852,111550.0,111540.0,0.05535]
[1756326098364,0.10950792,111550.0,111540.0,0.03216]
[1756326098562,0.52251792,111550.0,111540.0,0.03044625]
[1756326098760,0.0896534,111520.0,111510.0,0.02846]
[1756326098965,0.3608,111520.0,111490.0,0.06062]
[1756326099167,0.0931549,111490.0,111470.0,0.36340324]
[1756326099465,0.0897017,111460.0,111450.0,0.3608]
[1756326099665,0.0897017,111460.0,111410.0,0.02866123]
[1756326099666,0.0897305,111430.0,111410.0,0.02866123]
[1756326099871,7.984e-05,111420.0,111410.0,0.08391123]
[1756326100069,0.3608,111460.0,111450.0,0.05535]
[1756326100369,0.3608,111460.0,111420.0,0.0897266]
[1756326100370,0.4504936,111470.0,111460.0,0.02017]
[1756326100671,0.0897323,111430.0,111420.0,0.02846]
[1756326100968,0.3608,111440.0,111420.0,0.02846]
[1756326101173,0.3609,111450.0,111440.0,0.02846]
[1756326101362,0.4505097,111450.0,111440.0,0.02846]
[1756326101566,0.1016978,111440.0,111420.0,0.0001]
[1756326101762,0.1017138,111420.0,111410.0,1.59202123]
[1756326101963,0.1249131,111410.0,111390.0,0.02856]
[1756326102161,0.1249131,111410.0,111390.0,0.12846]
[1756326102162,0.08986594,111400.0,111390.0,0.12846]
[1756326102373,0.0897661,111380.0,111370.0,0.0001]
[1756326102572,0.1016783,111340.0,111330.0,0.00010164]
[1756326102776,0.8464683,111340.0,111330.0,0.00010164]
[1756326103073,0.0898076,111330.0,111310.0,1.76422]
[1756326103266,8.666e-05,111320.0,111310.0,1.76422]
[1756326103466,8.666e-05,111320.0,111310.0,1.7036]
[1756326103467,0.48577106,111320.0,111310.0,1.7036]
[1756326103670,0.48577106,111320.0,111250.0,7.534e-05]
[1756326103671,0.089863,111260.0,111250.0,7.534e-05]
[1756326103977,0.089863,111260.0,111250.0,4e-08]
[1756326103978,0.8571286,111260.0,111250.0,4e-08]
[1756326104173,0.8571286,111260.0,111210.0,0.0001]
[1756326104174,1.58398043,111260.0,111210.0,0.0001]
[1756326104369,0.0899115,111200.0,111190.0,0.0001]
[1756326104568,0.0899277,111180.0,111170.0,0.00279603]
[1756326104773,0.0899779,111120.0,111090.0,0.31443826]
[1756326104975,0.7206,111100.0,111090.0,0.27]
[1756326105174,0.7206,111100.0,111060.0,0.00010267]
[1756326105175,0.5400594,111080.0,111060.0,0.00010267]
[1756326105372,7.697e-05,111070.0,111060.0,0.59062]
[1756326105571,7.697e-05,111070.0,111010.0,0.43864224]
[1756326105572,0.4501819,111050.0,111010.0,0.3608]
[1756326105776,0.3608,111050.0,111010.0,0.3708]
[1756326106077,0.09319,111050.0,111040.0,0.30915]
[1756326106380,0.8816368,111050.0,111040.0,0.01]
[1756326106576,0.8816368,111050.0,110990.0,0.0001]
[1756326106577,0.0900693,111010.0,110990.0,0.0001]
[1756326106773,0.5405555,110980.0,110960.0,0.00027036]
[1756326106980,0.0900692,111010.0,110970.0,0.39296]
[1756326107273,0.47096426,111070.0,111010.0,0.03216]
[1756326107473,0.02014266,111070.0,111040.0,0.3608]
[1756326107679,0.0900285,111060.0,111050.0,0.02846]
[1756326107871,0.1020639,111090.0,111060.0,0.02846]
[1756326108072,0.3608,111070.0,111040.0,0.3608]
[1756326108280,0.3608,111070.0,111050.0,0.02846]
[1756326108473,0.3608,111090.0,111060.0,0.02319]
[1756326108772,0.3608,111150.0,111100.0,0.02846]
[1756326108973,0.38294,111170.0,111100.0,2.06788]
[1756326109176,0.4497651,111150.0,111120.0,0.3608]
[1756326109381,9.485e-05,111140.0,111110.0,0.03216]
[1756326109680,0.94332726,111160.0,111110.0,0.03216]
[1756326109681,0.3608,111180.0,111140.0,0.06062]
[1756326109973,0.4506845,111240.0,111160.0,0.41245]
[1756326110179,0.3608,111250.0,111230.0,0.02846]
[1756326110369,0.47074318,111290.0,111260.0,0.03216]
[1756326110572,0.38090048,111290.0,111280.0,0.02846]
[1756326110779,0.03702,111270.0,111260.0,0.3608]
[1756326110971,0.83016661,111290.0,111260.0,0.3608]
[1756326110972,0.0001,111300.0,111280.0,0.02319]
[1756326111168,0.0001,111300.0,111280.0,0.02]
[1756326111370,0.0001,111300.0,111290.0,0.41615]
[1756326111574,0.0897922,111350.0,111320.0,0.05535]
[1756326111871,0.03262,111330.0,111320.0,0.02]
[1756326112067,0.1224454,111310.0,111290.0,0.3608]
[1756326112280,0.00011311,111300.0,111290.0,2.03351]
[1756326112475,0.46894288,111360.0,111300.0,0.05535]
[1756326112680,0.03272,111330.0,111310.0,1.61736]
[1756326112978,0.4506166,111320.0,111280.0,1.64055]
[1756326113177,0.4506043,111340.0,111310.0,0.05535]
[1756326113371,0.0898332,111300.0,111280.0,0.38399]
[1756326113571,0.3608,111310.0,111300.0,0.02319]
[1756326113773,0.3608,111330.0,111270.0,3.32516]
[1756326113978,0.3608,111340.0,111320.0,0.02319]
[1756326114181,0.4505958,111350.0,111320.0,0.25]
[1756326114483,0.03273,111300.0,111290.0,0.0001]
[1756326114786,0.03262,111260.0,111250.0,0.00010813]
[1756326115080,0.03262,111260.0,111160.0,12.36064]
[1756326115081,0.122525,111210.0,111190.0,1.73638]
[1756326115376,0.64814,111200.0,111190.0,0.4950194]
[1756326115680,0.4496781,111170.0,111150.0,0.02846]
[1756326115884,0.3608,111160.0,111150.0,0.12062]
[1756326116097,0.3608,111160.0,111150.0,0.06]
[1756326116378,0.36088574,111160.0,111150.0,0.36545]
[1756326116685,0.39342,111160.0,111150.0,0.06]
[1756326116973,0.39342,111160.0,111110.0,0.1]
[1756326116974,0.03262,111120.0,111110.0,0.1]
[1756326117179,0.03262,111120.0,111060.0,0.3608]
[1756326117180,0.1226198,111090.0,111080.0,0.10008917]
[1756326117481,0.090016,111070.0,111060.0,1.61768]
[1756326117774,0.090016,111070.0,111060.0,1.70149]
[1756326117974,0.3608,111080.0,111060.0,1.70149]
[1756326118179,0.3608,111090.0,111060.0,1.61768]
[1756326118376,0.450808,111080.0,111070.0,0.02846]
[1756326118569,0.0900242,111060.0,111050.0,0.04663119]
[1756326118773,0.0900242,111060.0,111050.0,1.72360119]
[1756326118774,0.7766242,111060.0,111050.0,1.72360119]
[1756326118983,0.8108058,111090.0,111070.0,0.05317]
[1756326119168,0.03482,111070.0,111050.0,1.66455119]
[1756326119369,0.03482,111070.0,111050.0,1.63602119]
[1756326119370,0.4508165,111070.0,111050.0,1.63602119]
[1756326119569,0.4508165,111070.0,111040.0,1.70824]
[1756326119570,0.4501621,111050.0,111020.0,0.40354119]
[1756326119880,0.0900486,111030.0,111020.0,0.04663119]
[1756326120075,0.0900411,111040.0,111030.0,0.02853]
[1756326120281,0.8108551,111080.0,111040.0,0.02853]
[1756326120576,0.01,111080.0,111050.0,0.05317]
[1756326120778,0.03482,111080.0,111040.0,0.04274]
[1756326120986,0.810753,111110.0,111070.0,0.43207]
[1756326121173,0.9000403,111090.0,111060.0,0.01797232]
[1756326121374,0.0900078,111080.0,111070.0,0.3608]
[1756326121573,0.0900159,111070.0,111060.0,0.01797232]
[1756326121773,0.3608,111080.0,111030.0,0.3608]
[1756326121976,1.5900159,111070.0,111060.0,0.3608]
[1756326122180,1.5900159,111070.0,111050.0,0.38933]
[1756326122181,0.090024,111060.0,111050.0,0.3608]
[1756326122381,0.090024,111060.0,111050.0,0.38933]
[1756326122580,0.090024,111060.0,111050.0,0.3608]
[1756326122783,0.090024,111060.0,111050.0,0.42374]
[1756326122984,0.090024,111060.0,111050.0,0.3608]
[1756326123176,0.374844,111060.0,111030.0,1.9798]
[1756326123377,2.3109069,111070.0,111050.0,0.38933]
[1756326123378,1.5,111070.0,111050.0,0.38933]
[1756326123581,0.090024,111060.0,111050.0,0.42374]
[1756326123780,0.090024,111060.0,111050.0,0.38933]
[1756326123984,0.090024,111060.0,111050.0,0.3608]
[1756326124186,0.0900322,111050.0,111040.0,0.3608]
[1756326124380,0.0900484,111030.0,111020.0,0.37890119]
[1756326124579,0.0900484,111030.0,111020.0,0.70008119]
[1756326124785,0.0900411,111040.0,111030.0,0.08758]
[1756326124983,0.0900333,111050.0,111040.0,0.08758]
[1756326125185,0.0900333,111050.0,111040.0,0.38933]
[1756326125590,0.0900333,111050.0,111040.0,0.69838]
[1756326125895,0.83116905,111110.0,111040.0,1.07771743]
[1756326126185,0.03482,111080.0,111070.0,0.3608]
[1756326126385,0.090016,111070.0,111060.0,0.3608]
[1756326126586,0.4499823,111100.0,111070.0,0.02853]
[1756326126776,0.0899984,111100.0,111090.0,0.05317]
[1756326127279,0.02041975,111110.0,111090.0,0.05317]
[1756326127280,0.11040355,111110.0,111100.0,0.05317]
[1756326127484,0.0899741,111130.0,111100.0,2.32156]
[1756326127783,0.0899675,111130.0,111120.0,0.3608]
[1756326127983,0.11011552,111140.0,111120.0,0.7216]
[1756326128183,0.11019091,111150.0,111130.0,0.66397]
[1756326128484,0.4507064,111210.0,111140.0,1.98084]
[1756326128690,0.4494329,111230.0,111200.0,0.39521]
[1756326128898,0.0898865,111230.0,111220.0,0.7216]
[1756326129083,0.4492874,111270.0,111260.0,0.02853]
[1756326129384,0.10781541,111290.0,111280.0,0.02853]
[1756326129385,0.01796991,111290.0,111280.0,0.02853]
[1756326129692,0.4490491,111330.0,111280.0,0.02853]
[1756326129693,0.0898058,111330.0,111320.0,0.02853]
[1756326129882,0.0897984,111340.0,111330.0,0.44838]
[1756326130086,0.0897863,111360.0,111350.0,0.38933]
[1756326130284,0.4488665,111380.0,111350.0,0.38933]
[1756326130285,0.0897691,111380.0,111360.0,0.38933]
[1756326130490,0.10787492,111390.0,111380.0,0.02853]
[1756326130681,0.10787492,111390.0,111380.0,0.42374]
[1756326130882,0.10787492,111390.0,111380.0,0.38933]
[1756326131099,0.0898504,111400.0,111390.0,0.34268448]
[1756326131284,0.0001,111410.0,111400.0,0.2710496]
[1756326131588,0.0898349,111420.0,111400.0,0.3339896]
[1756326131793,0.0898349,111420.0,111410.0,0.38933]
[1756326131980,0.089827,111430.0,111410.0,2.00917]
[1756326132186,0.089715,111450.0,111440.0,0.08758]
[1756326132492,0.089715,111450.0,111440.0,0.80918]
[1756326132690,0.147415,111450.0,111420.0,2.071]
[1756326132883,0.0897413,111410.0,111400.0,0.3608]
[1756326133083,0.1126213,111410.0,111400.0,0.7216]
[1756326133287,0.3626213,111410.0,111400.0,0.7216]
[1756326133588,0.25,111410.0,111400.0,0.7216]
[1756326133996,0.0898352,111420.0,111410.0,0.06294]
[1756326134197,0.0897352,111420.0,111410.0,0.38933]
[1756326134493,0.0897494,111400.0,111380.0,2.00825]
[1756326134793,0.0897494,111400.0,111390.0,0.38933]
[1756326134980,0.0897413,111410.0,111400.0,0.06294]
[1756326135187,0.0897413,111410.0,111400.0,0.44848]
[1756326135387,1.96682065,111460.0,111430.0,0.39521]
[1756326135585,1.96682065,111460.0,111420.0,0.3608]
[1756326135586,0.0197991,111450.0,111440.0,0.08758]
[1756326135786,1.60801085,111460.0,111450.0,0.05317]
[1756326135983,0.0897091,111450.0,111440.0,2.06996]
[1756326136182,0.0897091,111450.0,111440.0,0.159864]
[1756326136183,0.5045291,111450.0,111440.0,0.159864]
[1756326136387,0.5045291,111450.0,111400.0,0.3609]
[1756326136388,0.0897413,111410.0,111400.0,0.3609]
[1756326136588,0.0001,111420.0,111400.0,1.43204743]
[1756326136786,1.87910975,111460.0,111440.0,0.05905]
[1756326136787,1.51830975,111460.0,111440.0,0.05905]
[1756326136996,1.60801085,111460.0,111450.0,0.7216]
[1756326137294,1.60801085,111460.0,111450.0,0.74624]
[1756326137497,1.51830975,111460.0,111450.0,0.99624]
[1756326137703,1.5,111460.0,111450.0,1.46315743]
[1756326137908,0.0896545,111520.0,111490.0,0.3608]
[1756326138199,0.0896545,111520.0,111510.0,0.7216]
[1756326138688,0.1167808,111510.0,111500.0,1.7086]
[1756326138892,0.02712,111570.0,111500.0,2.59631743]
[1756326139093,0.1167478,111560.0,111540.0,0.39521]
[1756326139390,0.0184469,111580.0,111560.0,0.03441]
[1756326139589,0.02712,111610.0,111570.0,2.3392]
[1756326139786,0.0895814,111610.0,111600.0,0.39521]
[1756326139987,1.6167106,111600.0,111590.0,1.9784]
[1756326140292,1.52712,111600.0,111590.0,0.3608]
[1756326140487,1.5,111600.0,111590.0,1.00601]
[1756326140688,0.0001,111620.0,111590.0,0.9716]
[1756326140888,0.39562,111680.0,111610.0,1.18851743]
[1756326141095,0.10797662,111690.0,111660.0,0.3608]
[1756326141393,0.10797662,111690.0,111680.0,0.3608]
[1756326141694,0.5643163,111670.0,111650.0,2.0682]
[1756326141898,0.0895319,111670.0,111650.0,2.0682]
[1756326142094,0.1166519,111670.0,111650.0,2.0682]
[1756326142492,0.02712,111660.0,111650.0,1.7074]
[1756326142687,1.5,111680.0,111650.0,2.3182]
[1756326142892,1.5,111680.0,111670.0,0.7216]
[1756326143291,1.5,111680.0,111670.0,0.9716]
[1756326143490,0.0895924,111720.0,111670.0,1.43851743]
[1756326143694,0.0894924,111720.0,111710.0,0.7216]
[1756326143898,0.1166124,111720.0,111710.0,1.97684]
[1756326144110,0.1514324,111720.0,111710.0,0.3608]
[1756326144302,0.1743199,111710.0,111700.0,0.3608]
[1756326144602,0.0894999,111710.0,111700.0,0.3608]
[1756326144797,0.0895078,111700.0,111690.0,0.3608]
[1756326145005,0.02712,111670.0,111660.0,0.3608]
[1756326145299,0.02288,111650.0,111630.0,0.3608]
[1756326145493,0.0895799,111610.0,111600.0,0.3608]
[1756326145693,0.0895799,111610.0,111590.0,0.36088]
[1756326145694,0.0896121,111570.0,111560.0,1.70568]
[1756326145994,0.1167087,111600.0,111570.0,0.03441]
[1756326146195,0.535224,111580.0,111570.0,0.61]
[1756326146390,0.0896443,111530.0,111510.0,8.677e-05]
[1756326146589,0.0896443,111530.0,111520.0,1.61492]
[1756326146794,0.0896443,111530.0,111520.0,0.01]
[1756326146991,0.0896443,111530.0,111520.0,0.04441]
[1756326147190,0.0001,111550.0,111530.0,0.03441]
[1756326147496,0.3608,111580.0,111550.0,0.03441]
[1756326147796,0.4775321,111570.0,111560.0,0.0653]
[1756326148000,0.4504121,111570.0,111560.0,0.17441]
[1756326148494,0.7852321,111570.0,111560.0,0.0859916]
[1756326148692,0.4504121,111570.0,111560.0,0.1192816]
[1756326148892,0.07193,111540.0,111520.0,1.63267659]
[1756326149093,0.0896218,111560.0,111530.0,0.02202]
[1756326149290,0.4504201,111560.0,111550.0,0.03329]
[1756326149492,1.8608,111590.0,111550.0,0.3608]
[1756326149691,0.3608,111610.0,111600.0,0.0867]
[1756326149897,0.02032496,111620.0,111600.0,0.0867]
[1756326149898,0.02032496,111620.0,111600.0,1.99742]
[1756326150089,0.08958,111610.0,111600.0,1.6146]
[1756326150293,0.02032496,111620.0,111610.0,0.0867]
[1756326150493,0.0001,111640.0,111620.0,0.02202]
[1756326150695,0.0895699,111630.0,111610.0,0.3608]
[1756326150895,0.0001,111650.0,111640.0,0.0867]
[1756326151087,0.0001,111650.0,111630.0,1.61452]
[1756326151088,1.5895559,111640.0,111630.0,1.61452]
[1756326151289,0.4478193,111630.0,111600.0,0.42548]
[1756326151491,0.3608,111610.0,111590.0,1.70496]
[1756326151690,0.4504649,111630.0,111610.0,0.00136]
[1756326151896,1.5,111640.0,111630.0,0.06604]
[1756326151897,1.5895613,111640.0,111630.0,0.06604]
[1756326152107,0.0001,111660.0,111650.0,0.06468]
[1756326152298,0.38076865,111680.0,111650.0,0.06468]
[1756326152299,0.0001,111680.0,111660.0,0.08788]
[1756326152491,0.47037213,111700.0,111670.0,0.42548]
[1756326152690,0.0895157,111690.0,111680.0,0.08788]
[1756326152995,0.10946923,111700.0,111690.0,0.08788]
[1756326153195,0.01996193,111700.0,111690.0,1.61412]
[1756326153394,0.0894993,111710.0,111700.0,0.06468]
[1756326153591,1.54002,111700.0,111670.0,0.384]
[1756326153790,1.5895075,111700.0,111690.0,0.44868]
[1756326154000,1.5895075,111700.0,111680.0,0.3608]
[1756326154001,0.04002,111680.0,111660.0,1.77708]
[1756326154207,0.0895166,111690.0,111670.0,0.42548]
[1756326154397,0.0001,111690.0,111680.0,0.42548]
[1756326154595,0.0001,111690.0,111660.0,1.41628]
[1756326154596,0.04002,111670.0,111660.0,0.3608]
[1756326154798,0.0895395,111660.0,111650.0,1.99436856]
[1756326154991,0.1296532,111670.0,111650.0,1.99436856]
[1756326155197,0.0001,111670.0,111660.0,0.44868]
[1756326155391,0.0896166,111690.0,111670.0,0.06468]
[1756326155392,0.0001,111690.0,111670.0,0.06468]
[1756326155597,1.50155931,111700.0,111690.0,0.08768]
[1756326155797,0.10945292,111720.0,111690.0,0.82771743]
[1756326156001,0.10945292,111720.0,111710.0,0.44692]
[1756326156297,0.10945342,111720.0,111700.0,1.69984]
[1756326156498,0.01996102,111720.0,111700.0,1.6784]
[1756326156704,0.0895075,111700.0,111690.0,0.3608]
[1756326156898,0.04002,111700.0,111680.0,1.70408]
[1756326157096,0.5586152,111690.0,111680.0,1.80408]
[1756326157298,1.5895001,111710.0,111680.0,3.33896]
[1756326157502,0.4903352,111690.0,111680.0,3.31752]
[1756326157694,0.1295273,111700.0,111680.0,3.41752]
[1756326157895,1.5,111710.0,111700.0,0.06468]
[1756326158198,1.5,111710.0,111690.0,0.44692]
[1756326158405,0.01996102,111720.0,111710.0,0.08612]
[1756326158597,0.0894688,111750.0,111710.0,0.97771743]
[1756326158794,1.5,111740.0,111720.0,0.41434]
[1756326159096,0.1295032,111730.0,111710.0,0.3608]
[1756326159299,0.5905012,111720.0,111710.0,0.12]
[1756326159506,0.1295042,111730.0,111710.0,1.61312]
[1756326159699,0.0894842,111730.0,111710.0,1.7081]
[1756326160003,1.5,111740.0,111730.0,0.07498]
[1756326160310,0.0001,111760.0,111740.0,0.07498]
[1756326160311,0.0894672,111750.0,111740.0,0.07498]
[1756326160497,0.0894832,111730.0,111720.0,0.41434]
[1756326160705,0.4821798,111750.0,111720.0,1.97376]
[1756326161004,0.10019,111740.0,111720.0,0.3608]
[1756326161202,0.5904853,111740.0,111730.0,1.61296]
[1756326161406,0.0895047,111710.0,111690.0,0.38065245]
[1756326161605,0.0895073,111700.0,111690.0,0.41394245]
[1756326161800,1.57193,111700.0,111690.0,1.99333245]
[1756326161997,2.0222373,111700.0,111690.0,1.63253245]
[1756326162200,1.6295273,111700.0,111690.0,1.63253245]
[1756326162406,1.5895073,111700.0,111690.0,2.08016245]
[1756326162710,0.0894932,111720.0,111700.0,0.07498]
[1756326162901,0.0895073,111700.0,111690.0,0.38065245]
[1756326163098,1.54002,111710.0,111690.0,1.99321245]
[1756326163301,0.3608,111720.0,111710.0,0.07498]
[1756326163504,0.40082,111720.0,111700.0,0.41434]
[1756326163805,0.0894993,111710.0,111700.0,0.4008]
[1756326164110,0.0910505,111720.0,111710.0,0.07498]
[1756326164296,0.0910505,111720.0,111700.0,0.3608]
[1756326164297,0.089496,111720.0,111700.0,0.3608]
[1756326164500,0.0894993,111710.0,111700.0,0.41434]
[1756326164708,0.0894993,111710.0,111690.0,0.01985245]
[1756326164709,0.64271,111710.0,111690.0,0.01985245]
[1756326164902,0.64271,111710.0,111680.0,2.06488]
[1756326164903,0.1614453,111690.0,111680.0,1.70408]
[1756326165106,0.1578033,111680.0,111670.0,9.27e-05]
[1756326165406,0.1295593,111660.0,111650.0,0.01974856]
[1756326165596,0.5905493,111660.0,111650.0,1.63192856]
[1756326165801,0.0895473,111650.0,111640.0,1.61238]
[1756326166002,0.1295914,111620.0,111610.0,1.63072341]
[1756326166208,0.6056176,111640.0,111610.0,2.02464341]
[1756326166209,0.4503667,111630.0,111610.0,2.02464341]
[1756326166502,0.4503714,111620.0,111610.0,1.95072341]
[1756326166804,0.4503695,111630.0,111610.0,2.02464341]
[1756326167008,0.4503695,111630.0,111620.0,0.1386]
[1756326167305,0.0891306,111620.0,111610.0,0.01854341]
[1756326167513,0.4499306,111620.0,111610.0,2.24064341]
[1756326167812,0.0895313,111670.0,111620.0,0.0895669]
[1756326168105,0.1296373,111700.0,111690.0,0.1386]
[1756326168106,0.0895107,111700.0,111690.0,0.1386]
[1756326168312,0.37898387,111720.0,111690.0,0.1386]
[1756326168313,0.0895026,111710.0,111700.0,0.1386]
[1756326168515,0.37898387,111720.0,111700.0,0.1386]
[1756326168516,0.3608,111720.0,111700.0,0.44548]
[1756326168813,0.0895393,111660.0,111650.0,0.8608]
[1756326169114,0.4503122,111700.0,111670.0,0.06468]
[1756326169409,0.0895124,111700.0,111680.0,0.45877]
[1756326169608,0.0895077,111700.0,111680.0,0.4994]
[1756326169911,0.0895077,111700.0,111690.0,0.07392]
[1756326170107,0.1214533,111680.0,111670.0,3.31476]
[1756326170306,0.07193,111660.0,111650.0,0.0001]
[1756326170505,0.0895204,111690.0,111670.0,0.07392]
[1756326170712,0.3608,111710.0,111700.0,0.1386]
[1756326170905,0.37882682,111720.0,111700.0,1.75084]
[1756326170906,0.0894924,111720.0,111700.0,1.75084]
[1756326171104,0.0894993,111710.0,111700.0,1.61224]
[1756326171303,0.1614293,111710.0,111690.0,1.70248]
[1756326171503,0.1614373,111700.0,111690.0,3.31468]
[1756326171809,0.1614373,111700.0,111690.0,1.70248]
[1756326172012,0.1614373,111700.0,111660.0,0.12555009]
[1756326172013,0.0895313,111670.0,111660.0,0.38104009]
[1756326172214,0.0895313,111670.0,111660.0,2.24240009]
[1756326172516,0.0895082,111700.0,111690.0,0.07392]
[1756326172817,0.0895082,111700.0,111690.0,0.3608]
[1756326173005,0.0895314,111670.0,111660.0,1.63240009]
[1756326173213,0.0896047,111710.0,111670.0,0.1542067]
[1756326173504,0.0895833,111730.0,111720.0,0.1386]
[1756326173705,1.5894782,111740.0,111720.0,1.61216]
[1756326173910,1.8608,111740.0,111710.0,0.3608]
[1756326174111,0.0894833,111730.0,111720.0,1.75076]
[1756326174308,0.08904264,111730.0,111720.0,1.61216]
[1756326174510,0.08904264,111730.0,111720.0,1.97296]
[1756326174708,0.08904264,111730.0,111720.0,1.61216]
[1756326174904,0.08904264,111730.0,111720.0,1.97296]
[1756326175109,0.0894913,111720.0,111710.0,0.3608]
[1756326175304,0.0895862,111730.0,111710.0,1.97288]
[1756326175509,0.0001,111730.0,111720.0,0.3608]
[1756326175709,0.0894833,111730.0,111720.0,0.4994]
[1756326175906,0.0894994,111710.0,111700.0,0.3608]
[1756326176111,0.07193,111710.0,111690.0,0.39409]
[1756326176312,1.5001,111740.0,111730.0,0.09797]
[1756326176511,1.5,111740.0,111730.0,0.5482533]
[1756326176717,0.0894595,111760.0,111740.0,0.06468]
[1756326176913,0.5185167,111790.0,111770.0,0.06468]
[1756326176914,0.3609,111790.0,111770.0,0.06468]
[1756326177115,0.4502311,111800.0,111790.0,0.06468]
[1756326177423,0.37858636,111810.0,111790.0,1.97276]
[1756326177424,0.01778636,111810.0,111790.0,1.97276]
[1756326177620,0.10720566,111810.0,111800.0,0.45877]
[1756326177815,0.0894308,111800.0,111780.0,0.3608]
[1756326178013,0.76879636,111810.0,111780.0,0.3608]
[1756326178014,0.1613652,111790.0,111780.0,0.3608]
[1756326178218,0.1613652,111790.0,111770.0,0.3608]
[1756326178219,0.0894432,111780.0,111770.0,0.3608]
[1756326178520,0.0894672,111750.0,111740.0,0.38097042]
[1756326178723,0.1766772,111750.0,111740.0,1.63209042]
[1756326178920,0.4959372,111750.0,111740.0,1.63209042]
[1756326179120,0.2459452,111740.0,111720.0,1.70224]
[1756326179317,0.1766895,111740.0,111730.0,0.3608]
[1756326179512,0.0894787,111740.0,111720.0,3.314]
[1756326179722,0.1766887,111740.0,111730.0,0.3608]
[1756326180018,0.0895073,111700.0,111690.0,1.61176]
[1756326180221,0.1676033,111680.0,111670.0,8.843e-05]
[1756326180527,0.6065252,111660.0,111610.0,2.06268]
[1756326180817,0.1981695,111610.0,111580.0,0.38071476]
[1756326181022,0.1981695,111610.0,111580.0,0.99071476]
[1756326181023,0.03933,111600.0,111580.0,0.99071476]
[1756326181325,0.3608,111610.0,111590.0,1.9724]
[1756326181617,0.40013,111610.0,111590.0,2.2016]
[1756326181824,0.40013,111610.0,111590.0,2.2017]
[1756326181825,0.36089883,111600.0,111590.0,2.2017]
[1756326182017,0.0895875,111600.0,111590.0,1.8116]
[1756326182212,0.4503804,111610.0,111590.0,2.20128805]
[1756326182423,0.4897175,111600.0,111590.0,2.20138805]
[1756326182620,0.7397175,111600.0,111590.0,0.59]
[1756326182821,0.7397175,111600.0,111590.0,0.5641288]
[1756326183326,0.4897175,111600.0,111590.0,0.5310513]
[1756326183617,0.4897175,111600.0,111590.0,0.4352415]
[1756326183821,0.7397175,111600.0,111590.0,0.4352415]
[1756326184123,0.4897175,111600.0,111590.0,0.4352415]
[1756326184326,0.8089775,111600.0,111590.0,0.4067856]
[1756326184516,0.1430614,111580.0,111560.0,1.61208]
[1756326184720,1.5,111570.0,111560.0,2.16386]
[1756326184921,1.5,111570.0,111560.0,1.80306]
[1756326185126,1.5,111570.0,111560.0,1.73191]
[1756326185325,1.44963,111570.0,111560.0,2.41386]
[1756326185521,1.29852,111570.0,111560.0,0.80178]
[1756326185723,0.0001,111580.0,111570.0,0.1143]
[1756326185918,0.0001,111590.0,111580.0,0.1143]